fUSD/lending_fUSD_20241227
["ID","MTS","AMOUNT","RATE_DAILY","PERIOD"]
[346814568,1735303852381,-919.14,0.00011153,2]
[346814569,1735303852390,-2655.54,0.00011153,2]
[346814570,1735303852399,-500.0,0.00011153,2]
[346814571,1735303852408,-6086.14,0.00011153,2]
[346814572,1735303852417,-500.0,0.00011153,2]
[346814573,1735303852427,-500.0,0.00011153,2]
[346814574,1735303852439,-11755.88,0.00011153,2]
[346814575,1735303852448,-1591.68,0.00011153,2]
[346814576,1735303852458,-500.0,0.00011153,2]
[346814577,1735303852468,-500.0,0.00011153,2]
[346814578,1735303852477,-1576.7,0.00011153,2]
[346814579,1735303852487,-587.49,0.00011153,2]
[346814580,1735303852496,-504.02,0.00011153,2]
[346814581,1735303852506,-2109.68,0.00011153,2]
[346814582,1735303852517,-9648.93,0.00011153,2]
[346814583,1735303852527,-682.32,0.00011153,2]
[346814584,1735303852536,-1142.37,0.00011153,2]
[346814585,1735303852545,-500.0,0.00011153,2]
[346814586,1735303852555,-1763.09,0.00011153,2]
[346814587,1735303852565,-500.0,0.00011153,2]
[346814588,1735303852575,-1928.48,0.00011153,2]
[346814589,1735303852585,-2351.25,0.00011153,2]
[346814590,1735303852594,-532.03,0.00011153,2]
[346814591,1735303852603,-500.0,0.00011153,2]
[346814592,1735303852613,-3543.78,0.00011153,2]
[346814593,1735303852622,-500.0,0.00011153,2]
[346814594,1735303852631,-1025.35,0.00011153,2]
[346814595,1735303852641,-1392.77,0.00011153,2]
[346814596,1735303852651,-500.0,0.00011153,2]
[346814597,1735303852660,-500.0,0.00011153,2]
[346814598,1735303852670,-1842.97,0.00011153,2]
[346814599,1735303852679,-500.0,0.00011153,2]
[346814600,1735303852689,-1967.31,0.00011153,2]
[346814601,1735303852699,-500.0,0.00011153,2]
[346814602,1735303852709,-500.0,0.00011153,2]
[346814603,1735303852720,-4491.23,0.00011153,2]
[346814604,1735303852731,-500.0,0.00011153,2]
[346814605,1735303852742,-745.22,0.00011153,2]
[346814606,1735303852755,-2952.36,0.00011153,2]
[346814607,1735303852765,-519.86,0.00011153,2]
[346814608,1735303852775,-500.0,0.00011153,2]
[346814609,1735303852785,-3510.66,0.00011153,2]
[346814610,1735303852794,-3490.06,0.00011153,2]
[346814611,1735303852804,-3053.96,0.00011153,2]
[346814612,1735303852813,-862.5,0.00011153,2]
[346814613,1735303852823,-500.0,0.00011153,2]
[346814614,1735303852833,-500.0,0.00011153,2]
[346814615,1735303852842,-500.0,0.00011153,2]
[346814616,1735303852851,-1013.27,0.00011153,2]
[346814617,1735303852861,-500.0,0.00011153,2]
[346814618,1735303852871,-1258.16,0.00011153,2]
[346814619,1735303852881,-753.04,0.00011153,2]
[346814620,1735303852890,-4295.77,0.00011153,2]
[346814621,1735303852900,-500.0,0.00011153,2]
[346814622,1735303852909,-2672.24,0.00011153,2]
[346814623,1735303852919,-546.63,0.00011153,2]
[346814624,1735303852928,-6849.04860763,0.00011154,2]
[346814625,1735303852938,-1775306.87562254,0.00011154,2]
[346814626,1735303852948,-1096.35,0.00011154,2]
[346814627,1735303852957,-500.0,0.00011154,2]
[346814628,1735303852967,-1427.0,0.00011154,2]
[346814629,1735303852977,-677.24,0.00011154,2]
[346814630,1735303852986,-500.0,0.00011154,2]
[346814631,1735303852996,-500.0,0.00011154,2]
[346814632,1735303853006,-500.0,0.00011154,2]
[346814633,1735303853015,-500.0,0.00011154,2]
[346814634,1735303853025,-500.0,0.00011154,2]
[346814635,1735303853034,-993.05,0.00011154,2]
[346814636,1735303853044,-500.0,0.00011154,2]
[346814637,1735303853054,-614.74,0.00011154,2]
[346814638,1735303853063,-692.11,0.00011154,2]
[346814639,1735303853073,-500.0,0.00011154,2]
[346814640,1735303853083,-544.58,0.00011154,2]
[346814641,1735303853092,-783.14,0.00011154,2]
[346814642,1735303853101,-1101.44,0.00011154,2]
[346814643,1735303853112,-500.0,0.00011154,2]
[346814644,1735303853121,-500.0,0.00011154,2]
[346814645,1735303853131,-500.0,0.00011154,2]
[346814646,1735303853144,-500.0,0.00011154,2]
[346814647,1735303853154,-644.32,0.00011154,2]
[346814648,1735303853163,-500.0,0.00011154,2]
[346814649,1735303853172,-538.6664273,0.00011154,2]
[346814650,1735303853183,-500.0,0.00011154,2]
[346814651,1735303853192,-500.0,0.00011154,2]
[346814652,1735303853201,-678.14,0.00011154,2]
[346814653,1735303853211,-718.69,0.00011154,2]
[346814654,1735303853222,-500.0,0.00011154,2]
[346814655,1735303853231,-369.94330734,0.00011154,2]
[346814656,1735303853240,-910.6,0.00011154,2]
[346814657,1735303853251,-500.0,0.00011154,2]
[346814658,1735303853261,-771.87,0.00011154,2]
[346814659,1735303853272,-500.0,0.00011154,2]
[346814660,1735303853282,-567.3,0.00011154,2]
[346814661,1735303853291,-1102.61,0.00011154,2]
[346814662,1735303853300,-763.32,0.00011154,2]
[346814663,1735303853310,-928.2,0.00011154,2]
[346814664,1735303853319,-500.0,0.00011154,2]
[346814665,1735303853328,-1327.29,0.00011154,2]
[346814666,1735303853339,-1047.05,0.00011154,2]
[346814667,1735303853348,-500.0,0.00011154,2]
[346814668,1735303853359,-810.8,0.00011154,2]
[346814669,1735303853369,-500.0,0.00011154,2]
[346814670,1735303853378,-932.4,0.00011154,2]
[346814671,1735303853388,-500.0,0.00011154,2]
[346814672,1735303853397,-808.99,0.00011154,2]
[346814673,1735303853407,-500.0,0.00011154,2]
[346814674,1735303853416,-500.0,0.00011154,2]
[346814675,1735303853426,-774.24,0.00011154,2]
[346814676,1735303853435,-500.0,0.00011154,2]
[346814677,1735303853445,-500.0,0.00011154,2]
[346814678,1735303853454,-500.0,0.00011154,2]
[346814679,1735303853464,-500.0,0.00011154,2]
[346814680,1735303853474,-653.61,0.00011154,2]
[346814681,1735303853483,-797.51,0.00011154,2]
[346814682,1735303853492,-500.0,0.00011154,2]
[346814683,1735303853503,-502.84,0.00011154,2]
[346814684,1735303853512,-500.0,0.00011154,2]
[346814685,1735303853522,-767.2,0.00011154,2]
[346814686,1735303853531,-1139.16,0.00011154,2]
[346814687,1735303853540,-1110.43,0.00011154,2]
[346814688,1735303853550,-197.96397424,0.00011154,2]
[346814689,1735303853559,-500.0,0.00011154,2]
[346814690,1735303853569,-500.0,0.00011154,2]
[346814691,1735303853579,-552.38220335,0.00011154,2]
[346814692,1735303853588,-500.0,0.00011154,2]
[346814693,1735303853598,-753.56,0.00011154,2]
[346814694,1735303853607,-500.0,0.00011154,2]
[346814695,1735303853617,-500.0,0.00011154,2]
[346814696,1735303853626,-500.0,0.00011154,2]
[346814697,1735303853635,-500.0,0.00011154,2]
[346814698,1735303853645,-831.81,0.00011154,2]
[346814699,1735303853654,-1141.63,0.00011154,2]
[346814700,1735303853664,-500.0,0.00011154,2]
[346814701,1735303853673,-500.0,0.00011154,2]
[346814702,1735303853683,-500.0,0.00011154,2]
[346814703,1735303853692,-1292.25,0.00011154,2]
[346814704,1735303853701,-500.0,0.00011154,2]
[346814705,1735303853711,-500.0,0.00011154,2]
[346814706,1735303853720,-500.0,0.00011154,2]
[346814707,1735303853729,-1306.09,0.00011154,2]
[346814708,1735303853739,-500.0,0.00011154,2]
[346814709,1735303853749,-500.0,0.00011154,2]
[346814710,1735303853758,-2207.52,0.00011154,2]
[346814711,1735303853767,-500.0,0.00011154,2]
[346814712,1735303853777,-500.0,0.00011154,2]
[346814713,1735303853786,-1650.25,0.00011154,2]
[346814714,1735303853795,-500.0,0.00011154,2]
[346814715,1735303853805,-500.0,0.00011154,2]
[346814716,1735303853814,-500.0,0.00011154,2]
[346814717,1735303853823,-500.0,0.00011154,2]
[346814718,1735303853832,-500.0,0.00011154,2]
[346814719,1735303853841,-1490.3,0.00011154,2]
[346814720,1735303853851,-1649.61,0.00011154,2]
[346814721,1735303853860,-1020.5,0.00011154,2]
[346814722,1735303853870,-500.0,0.00011154,2]
[346814723,1735303853879,-1091.77,0.00011154,2]
[346814724,1735303853889,-500.0,0.00011154,2]
[346814725,1735303853898,-1905.99,0.00011154,2]
[346814726,1735303853907,-500.0,0.00011154,2]
[346814727,1735303853916,-500.0,0.00011154,2]
[346814728,1735303853926,-1337.16,0.00011154,2]
[346814729,1735303853935,-811.98,0.00011154,2]
[346814730,1735303853944,-733.66,0.00011154,2]
[346814731,1735303853953,-1944.59,0.00011154,2]
[346814732,1735303853963,-517.81296516,0.00011154,2]
[346814733,1735303853972,-500.0,0.00011154,2]
[346814734,1735303853981,-500.0,0.00011154,2]
[346814735,1735303853991,-2793.32,0.00011154,2]
[346814736,1735303854001,-500.0,0.00011154,2]
[346814737,1735303854011,-500.0,0.00011154,2]
[346814738,1735303854022,-3145.14,0.00011154,2]
[346814739,1735303854032,-768.72,0.00011154,2]
[346814740,1735303854042,-1368.55,0.00011154,2]
[346814741,1735303854053,-1478.41,0.00011154,2]
[346814742,1735303854064,-500.0,0.00011154,2]
[346814743,1735303854075,-1815.37,0.00011154,2]
[346814744,1735303854086,-997.34,0.00011154,2]
[346814745,1735303854096,-546.08970658,0.00011154,2]
[346814746,1735303854105,-500.0,0.00011154,2]
[346814747,1735303854115,-1220.23,0.00011154,2]
[346814748,1735303854124,-1699.91,0.00011154,2]
[346814749,1735303854135,-500.0,0.00011154,2]
[346814750,1735303854145,-507.36,0.00011154,2]
[346814751,1735303854155,-500.0,0.00011154,2]
[346814752,1735303854164,-500.0,0.00011154,2]
[346814753,1735303854174,-1282.92,0.00011154,2]
[346814754,1735303854186,-1659.87,0.00011154,2]
[346814755,1735303854196,-879.92,0.00011154,2]
[346814756,1735303854206,-2446.91,0.00011154,2]
[346814757,1735303854217,-596.54,0.00011154,2]
[346814758,1735303854227,-500.0,0.00011154,2]
[346814759,1735303854236,-1854.73,0.00011154,2]
[346814760,1735303854246,-803.41,0.00011154,2]
[346814761,1735303854255,-500.0,0.00011154,2]
[346814762,1735303854265,-500.0,0.00011154,2]
[346814763,1735303854274,-500.0,0.00011154,2]
[346814764,1735303854284,-1463.1,0.00011154,2]
[346814765,1735303854293,-509.37,0.00011154,2]
[346814766,1735303854303,-970.46,0.00011154,2]
[346814767,1735303854312,-2519.08,0.00011154,2]
[346814768,1735303854322,-525.33,0.00011154,2]
[346814769,1735303854332,-1990.33,0.00011154,2]
[346814770,1735303854341,-1243.95,0.00011154,2]
[346814771,1735303854351,-500.0,0.00011154,2]
[346814772,1735303854361,-1257.41,0.00011154,2]
[346814773,1735303854371,-1064.33,0.00011154,2]
[346814774,1735303854380,-639.09,0.00011154,2]
[346814775,1735303854390,-1044.74,0.00011154,2]
[346814776,1735303854400,-1306.56,0.00011154,2]
[346814777,1735303854409,-605.26,0.00011154,2]
[346814778,1735303854419,-854.47,0.00011154,2]
[346814779,1735303854428,-1063.17,0.00011154,2]
[346814780,1735303854438,-1272.81,0.00011154,2]
[346814781,1735303854451,-500.0,0.00011154,2]
[346814782,1735303854461,-701.18,0.00011154,2]
[346814783,1735303854471,-500.0,0.00011154,2]
[346814784,1735303854482,-500.0,0.00011154,2]
[346814785,1735303854492,-1443.79,0.00011154,2]
[346814786,1735303854502,-500.0,0.00011154,2]
[346814787,1735303854512,-1032.3,0.00011154,2]
[346814788,1735303854522,-762.6,0.00011154,2]
[346814789,1735303854532,-1847.67,0.00011154,2]
[346814790,1735303854542,-500.0,0.00011154,2]
[346814791,1735303854552,-509.15,0.00011154,2]
[346814792,1735303854561,-524.91477206,0.00011154,2]
[346814793,1735303854571,-1286.74,0.00011154,2]
[346814794,1735303854582,-1066.17,0.00011154,2]
[346814795,1735303854592,-1327.91,0.00011154,2]
[346814796,1735303854601,-500.0,0.00011154,2]
[346814797,1735303854611,-500.0,0.00011154,2]
[346814798,1735303854621,-1728.22,0.00011154,2]
[346814799,1735303854719,-500.0,0.00011154,2]
[346814800,1735303854729,-2534.66,0.00011154,2]
[346814801,1735303854738,-500.0,0.00011154,2]
[346814802,1735303854748,-500.0,0.00011154,2]
[346814803,1735303854758,-1518.12,0.00011154,2]
[346814804,1735303854767,-1485.06,0.00011154,2]
[346814805,1735303854776,-500.0,0.00011154,2]
[346814806,1735303854785,-2357.87,0.00011154,2]
[346814807,1735303854794,-869.75,0.00011154,2]
[346814808,1735303854803,-865.89,0.00011154,2]
[346814809,1735303854814,-202.06709509,0.00011154,2]
[346814810,1735303854823,-500.0,0.00011154,2]
[346814811,1735303854833,-900.77,0.00011154,2]
[346814812,1735303854844,-500.0,0.00011154,2]
[346814813,1735303854854,-3010.1,0.00011154,2]
[346814814,1735303854864,-500.0,0.00011154,2]
[346814815,1735303854874,-500.0,0.00011154,2]
[346814816,1735303854884,-500.0,0.00011154,2]
[346814817,1735303854893,-1605.68,0.00011154,2]
[346814818,1735303854903,-1416.43,0.00011154,2]
[346814819,1735303854913,-472.46732669,0.00011154,2]
[346814820,1735303854923,-1519.61,0.00011154,2]
[346814821,1735303854933,-681.98,0.00011154,2]
[346814822,1735303854943,-500.0,0.00011154,2]
[346814823,1735303854953,-896.62,0.00011154,2]
[346814824,1735303854963,-500.0,0.00011154,2]
[346814825,1735303854974,-1187.24,0.00011154,2]
[346814826,1735303854983,-2152.28,0.00011154,2]
[346814827,1735303854993,-1594.55,0.00011154,2]
[346814828,1735303855002,-500.0,0.00011154,2]
[346814829,1735303855011,-520.83,0.00011154,2]
[346814830,1735303855021,-516.97274242,0.00011154,2]
[346814831,1735303855030,-2484.26,0.00011154,2]
[346814832,1735303855039,-500.0,0.00011154,2]
[346814833,1735303855048,-1191.45,0.00011154,2]
[346814834,1735303855058,-500.0,0.00011154,2]
[346814835,1735303855067,-1758.27,0.00011154,2]
[346814836,1735303855076,-1033.89,0.00011154,2]
[346814837,1735303855086,-500.0,0.00011154,2]
[346814838,1735303855096,-500.0,0.00011154,2]
[346814839,1735303855105,-2413.37,0.00011154,2]
[346814840,1735303855114,-2192.93,0.00011154,2]
[346814841,1735303855124,-771.04,0.00011154,2]
[346814842,1735303855136,-500.0,0.00011154,2]
[346814843,1735303855145,-1888.99,0.00011154,2]
[346814844,1735303855154,-1024.53,0.00011154,2]
[346814845,1735303855163,-500.0,0.00011154,2]
[346814846,1735303855174,-500.0,0.00011154,2]
[346814847,1735303855184,-500.0,0.00011154,2]
[346814848,1735303855194,-500.0,0.00011154,2]
[346814849,1735303855204,-500.0,0.00011154,2]
[346814850,1735303855214,-500.0,0.00011154,2]
[346814851,1735303855224,-771.65,0.00011154,2]
[346814852,1735303855234,-500.0,0.00011154,2]
[346814853,1735303855243,-500.0,0.00011154,2]
[346814854,1735303855253,-503.31,0.00011154,2]
[346814855,1735303855262,-694.17,0.00011154,2]
[346814856,1735303855271,-1784.51,0.00011154,2]
[346814857,1735303855280,-4940.34,0.00011154,2]
[346814858,1735303855289,-500.0,0.00011154,2]
[346814859,1735303855298,-2611.7,0.00011154,2]
[346814860,1735303855307,-2128.62,0.00011154,2]
[346814861,1735303855317,-500.0,0.00011154,2]
[346814862,1735303855326,-500.0,0.00011154,2]
[346814863,1735303855336,-500.0,0.00011154,2]
[346814864,1735303855346,-500.0,0.00011154,2]
[346814865,1735303855356,-500.0,0.00011154,2]
[346814866,1735303855365,-768.15,0.00011154,2]
[346814867,1735303855374,-1485.8,0.00011154,2]
[346814868,1735303855384,-500.0,0.00011154,2]
[346814869,1735303855393,-900.68,0.00011154,2]
[346814870,1735303855403,-500.0,0.00011154,2]
[346814871,1735303855413,-1437.38,0.00011154,2]
[346814872,1735303855423,-1296.71,0.00011154,2]
[346814873,1735303855433,-500.0,0.00011154,2]
[346814874,1735303855443,-1469.03,0.00011154,2]
[346814875,1735303855452,-968.4,0.00011154,2]
[346814876,1735303855462,-1724.01,0.00011154,2]
[346814877,1735303855473,-500.0,0.00011154,2]
[346814878,1735303855482,-500.0,0.00011154,2]
[346814879,1735303855491,-3610.02,0.00011154,2]
[346814880,1735303855502,-204.2564724,0.00011154,2]
[346814881,1735303855511,-500.0,0.00011154,2]
[346814882,1735303855521,-500.0,0.00011154,2]
[346814883,1735303855531,-1494.56,0.00011154,2]
[346814884,1735303855541,-6155.66,0.00011154,2]
[346814885,1735303855550,-500.0,0.00011154,2]
[346814886,1735303855559,-968.29,0.00011154,2]
[346814887,1735303855569,-521.14853747,0.00011154,2]
[346814888,1735303855578,-564.84,0.00011154,2]
[346814889,1735303855587,-500.0,0.00011154,2]
[346814890,1735303855596,-558.3,0.00011154,2]
[346814891,1735303855606,-698.41,0.00011154,2]
[346814892,1735303855615,-1449.01,0.00011154,2]
[346814893,1735303855625,-500.0,0.00011154,2]
[346814894,1735303855634,-2218.95,0.00011154,2]
[346814895,1735303855643,-500.0,0.00011154,2]
[346814896,1735303855653,-500.0,0.00011154,2]
[346814897,1735303855662,-500.0,0.00011154,2]
[346814898,1735303855671,-2988.7,0.00011154,2]
[346814899,1735303855680,-500.0,0.00011154,2]
[346814900,1735303855690,-294.75235302,0.00011154,2]
[346814901,1735303855699,-2940.0,0.00011154,2]
[346814902,1735303855709,-500.0,0.00011154,2]
[346814903,1735303855719,-500.0,0.00011154,2]
[346814904,1735303855728,-3585.71,0.00011154,2]
[346814905,1735303855737,-500.0,0.00011154,2]
[346814906,1735303855747,-27220.93,0.00011154,2]
[346814907,1735303855758,-500.0,0.00011154,2]
[346814908,1735303855767,-1359.26,0.00011154,2]
[346814909,1735303855777,-500.0,0.00011154,2]
[346814910,1735303855786,-500.0,0.00011154,2]
[346814911,1735303855795,-4229.18,0.00011154,2]
[346814912,1735303855805,-871.53,0.00011154,2]
[346814913,1735303855814,-500.0,0.00011154,2]
[346814914,1735303855824,-1074.66,0.00011154,2]
[346814915,1735303855834,-1804.77,0.00011154,2]
[346814916,1735303855843,-1609.85,0.00011154,2]
[346814917,1735303855852,-1519.48,0.00011154,2]
[346814918,1735303855861,-500.0,0.00011154,2]
[346814919,1735303855870,-744.38,0.00011154,2]
[346814920,1735303855879,-576.66,0.00011154,2]
[346814921,1735303855888,-500.0,0.00011154,2]
[346814922,1735303855897,-500.0,0.00011154,2]
[346814923,1735303855908,-1122.8,0.00011154,2]
[346814924,1735303855917,-500.0,0.00011154,2]
[346814925,1735303855926,-654.41,0.00011154,2]
[346814926,1735303855935,-305.4957232,0.00011154,2]
[346814927,1735303855944,-500.0,0.00011154,2]
[346814928,1735303855953,-5164.39,0.00011154,2]
[346814929,1735303855962,-500.0,0.00011154,2]
[346814930,1735303855971,-1914.0,0.00011154,2]
[346814931,1735303855980,-3347.73,0.00011154,2]
[346814932,1735303855989,-500.0,0.00011154,2]
[346814933,1735303856001,-500.0,0.00011154,2]
[346814934,1735303856010,-1508.43,0.00011154,2]
[346814935,1735303856019,-500.0,0.00011154,2]
[346814936,1735303856029,-500.0,0.00011154,2]
[346814937,1735303856038,-3671.61,0.00011154,2]
[346814938,1735303856048,-2874.89,0.00011154,2]
[346814939,1735303856059,-2028.12,0.00011154,2]
[346814940,1735303856068,-500.0,0.00011154,2]
[346814941,1735303856079,-5481.61,0.00011154,2]
[346814942,1735303856088,-500.0,0.00011154,2]
[346814943,1735303856098,-25795.41,0.00011154,2]
[346814944,1735303856107,-3942.12,0.00011154,2]
[346814945,1735303856116,-500.0,0.00011154,2]
[346814946,1735303856126,-500.0,0.00011154,2]
[346814947,1735303856138,-8360.95,0.00011154,2]
[346814948,1735303856147,-500.0,0.00011154,2]
[346814949,1735303856158,-3547.18,0.00011154,2]
[346814950,1735303856168,-483.66466594,0.00011154,2]
[346814951,1735303856178,-1692.08,0.00011154,2]
[346814952,1735303856188,-8703.63,0.00011154,2]
[346814953,1735303856198,-549.1,0.00011154,2]
[346814954,1735303856209,-979.9,0.00011154,2]
[346814955,1735303856220,-15792.61,0.00011154,2]
[346814956,1735303856231,-500.0,0.00011154,2]
[346814957,1735303856241,-1379.08,0.00011154,2]
[346814958,1735303856251,-5221.81,0.00011154,2]
[346814959,1735303856261,-1843.08,0.00011154,2]
[346814960,1735303856269,-11995.38,0.00011154,2]
[346814961,1735303856279,-1232.41,0.00011154,2]
[346814962,1735303856288,-1617.85,0.00011154,2]
[346814963,1735303856297,-500.0,0.00011155,2]
[346814964,1735303856306,-500.0,0.00011155,2]
[346814965,1735303856315,-500.0,0.00011155,2]
[346814966,1735303856325,-503.9895556,0.00011155,2]
[346814967,1735303856335,-500.0,0.00011155,2]
[346814968,1735303856344,-500.0,0.00011155,2]
[346814969,1735303856353,-500.0,0.00011155,2]
[346814970,1735303856363,-500.0,0.00011155,2]
[346814971,1735303856372,-500.0,0.00011155,2]
[346814972,1735303856381,-257.73133268,0.00011155,2]
[346814973,1735303856391,-500.0,0.00011155,2]
[346814974,1735303856400,-500.0,0.00011155,2]
[346814975,1735303856410,-591.47485643,0.00011155,2]
[346814976,1735303856419,-500.0,0.00011155,2]
[346814977,1735303856428,-500.0,0.00011155,2]
[346814978,1735303856438,-608.32405346,0.00011155,2]
[346814979,1735303856448,-500.0,0.00011155,2]
[346814980,1735303856457,-500.0,0.00011155,2]
[346814981,1735303856467,-500.0,0.00011155,2]
[346814982,1735303856476,-500.0,0.00011155,2]
[346814983,1735303856486,-2061.11,0.00011155,2]
[346814984,1735303856495,-632.92,0.00011155,2]
[346814985,1735303856505,-1652.86,0.00011155,2]
[346814986,1735303856515,-1912.15,0.00011155,2]
[346814987,1735303856525,-500.0,0.00011155,2]
[346814988,1735303856535,-2512.54,0.00011155,2]
[346814989,1735303856544,-1975.25,0.00011155,2]
[346814990,1735303856554,-1712.35,0.00011155,2]
[346814991,1735303856563,-500.0,0.00011155,2]
[346814992,1735303856573,-559.54,0.00011155,2]
[346814993,1735303856582,-2580.45,0.00011155,2]
[346814994,1735303856591,-1782.14,0.00011155,2]
[346814995,1735303856601,-2105.65,0.00011155,2]
[346814996,1735303856610,-1993.64,0.00011155,2]
[346814997,1735303856619,-500.0,0.00011155,2]
[346814998,1735303856628,-2638.38,0.00011155,2]
[346814999,1735303856637,-1413.09,0.00011155,2]
[346815000,1735303856647,-2844.17,0.00011155,2]
[346815001,1735303856656,-1521.09,0.00011155,2]
[346815002,1735303856665,-500.0,0.00011155,2]
[346815003,1735303856674,-2016.2,0.00011155,2]
[346815004,1735303856683,-3331.32,0.00011155,2]
[346815005,1735303856692,-1820.84,0.00011155,2]
[346815006,1735303856701,-1326.09,0.00011155,2]
[346815007,1735303856710,-500.0,0.00011155,2]
[346815008,1735303856720,-1402.21,0.00011155,2]
[346815009,1735303856729,-500.0,0.00011155,2]
[346815010,1735303856739,-3720.25,0.00011155,2]
[346815011,1735303856748,-2017.62,0.00011155,2]
[346815012,1735303856757,-3597.7,0.00011155,2]
[346815013,1735303856767,-1270.62,0.00011155,2]
[346815014,1735303856776,-2320.15,0.00011155,2]
[346815015,1735303856785,-1469.06,0.00011155,2]
[346815016,1735303856794,-3195.83,0.00011155,2]
[346815017,1735303856803,-1835.08,0.00011155,2]
[346815018,1735303856812,-906.06,0.00011155,2]
[346815019,1735303856821,-2514.77,0.00011155,2]
[346815020,1735303856831,-611.09,0.00011155,2]
[346815021,1735303856840,-1072.65,0.00011155,2]
[346815022,1735303856849,-1522.95,0.00011155,2]
[346815023,1735303856859,-500.0,0.00011155,2]
[346815024,1735303856868,-1697.39,0.00011156,2]
[346815025,1735303856876,-500.0,0.00011156,2]
[346815026,1735303856885,-500.0,0.00011156,2]
[346815027,1735303856894,-865.14,0.00011156,2]
[346815028,1735303856902,-618.45,0.00011156,2]
[346815029,1735303856911,-578.57,0.00011156,2]
[346815030,1735303856920,-1148.81,0.00011156,2]
[346815031,1735303856929,-735.2,0.00011156,2]
[346815032,1735303856938,-500.0,0.00011156,2]
[346815033,1735303856947,-500.0,0.00011156,2]
[346815034,1735303856956,-773.21,0.00011156,2]
[346815035,1735303856965,-500.0,0.00011156,2]
[346815036,1735303856975,-500.0,0.00011156,2]
[346815037,1735303856984,-500.0,0.00011156,2]
[346815038,1735303856994,-912.16,0.00011156,2]
[346815039,1735303857005,-1017.72,0.00011156,2]
[346815040,1735303857015,-500.0,0.00011156,2]
[346815041,1735303857026,-813.07,0.00011156,2]
[346815042,1735303857036,-500.0,0.00011156,2]
[346815043,1735303857046,-500.05304091,0.00011156,2]
[346815044,1735303857055,-1721.12,0.00011156,2]
[346815045,1735303857064,-500.0,0.00011156,2]
[346815046,1735303857074,-829.13,0.00011156,2]
[346815047,1735303857084,-500.0,0.00011156,2]
[346815048,1735303857094,-909.5,0.00011156,2]
[346815049,1735303857105,-500.0,0.00011156,2]
[346815050,1735303857115,-1303.81,0.00011156,2]
[346815051,1735303857125,-1187.98,0.00011156,2]
[346815052,1735303857137,-500.0,0.00011156,2]
[346815053,1735303857147,-1211.03,0.00011156,2]
[346815054,1735303857158,-500.0,0.00011156,2]
[346815055,1735303857168,-800.16,0.00011156,2]
[346815056,1735303857179,-500.0,0.00011156,2]
[346815057,1735303857189,-1551.86,0.00011156,2]
[346815058,1735303857199,-901.41,0.00011156,2]
[346815059,1735303857211,-500.0,0.00011156,2]
[346815060,1735303857221,-801.99,0.00011156,2]
[346815061,1735303857231,-500.0,0.00011156,2]
[346815062,1735303857240,-500.0,0.00011156,2]
[346815063,1735303857251,-500.0,0.00011156,2]
[346815064,1735303857261,-547.86,0.00011156,2]
[346815065,1735303857270,-1401.87,0.00011156,2]
[346815066,1735303857281,-1336.68,0.00011156,2]
[346815067,1735303857293,-500.0,0.00011156,2]